fUSD/lending_fUSD_20260610
["ID","MTS","AMOUNT","RATE_DAILY","PERIOD"]
[424722512,1781088673000,-159.34890899,0.00033366,7]
[424722515,1781088673000,-150.0,0.00033372,7]
[424722508,1781088673000,-150.0,0.00033362,7]
[424722518,1781088673000,-200.0,0.00033386,45]
[424722517,1781088673000,-200.0,0.00033386,30]
[424722506,1781088673000,-159.34890899,0.0003333,7]
[424722498,1781088673000,-662.46669759,0.00033295,7]
[424722501,1781088673000,-500.0,0.00033321,30]
[424722502,1781088673000,-150.0,0.00033324,7]
[424722497,1781088673000,-216.78508448,0.00033295,7]
[424722507,1781088673000,-5625.23634227,0.00033361,7]
[424722584,1781088674000,-150.0,0.0003367,7]
[424722585,1781088674000,-216.78508448,0.00033686,7]
[424722583,1781088674000,-150.0,0.00033657,7]
[424722575,1781088674000,-662.46669759,0.00033615,7]
[424722586,1781088674000,-662.46669759,0.00033686,7]
[424722579,1781088674000,-216.78508448,0.0003365,7]
[424722582,1781088674000,-150.0,0.00033655,7]
[424722581,1781088674000,-159.34890899,0.0003365,7]
[424722580,1781088674000,-662.46669759,0.0003365,7]
[424722576,1781088674000,-159.34890899,0.00033615,7]
[424722591,1781088674000,-2541.59,0.000337,2]
[424722590,1781088674000,-2541.6,0.000337,2]
[424722587,1781088674000,-159.34890899,0.00033686,7]
[424722592,1781088674000,-500.0,0.00033702,30]
[424722589,1781088674000,-7624.8,0.000337,2]
[424722593,1781088674000,-150.0,0.00033703,7]
[424722604,1781088674000,-150.0,0.00033771,7]
[424722603,1781088674000,-150.0,0.00033764,7]
[424722601,1781088674000,-662.46669759,0.00033757,7]
[424722594,1781088674000,-150.0,0.00033704,7]
[424722598,1781088674000,-150.0,0.00033727,7]
[424722602,1781088674000,-159.34890899,0.00033757,7]
[424722596,1781088674000,-662.46669759,0.00033721,7]
[424722595,1781088674000,-216.78508448,0.00033721,7]
[424722597,1781088674000,-159.34890899,0.00033721,7]
[424722577,1781088674000,-150.0,0.00033619,7]
[424722588,1781088674000,-150.0,0.00033691,7]
[424722574,1781088674000,-216.78508448,0.00033615,7]
[424722545,1781088674000,-216.78508448,0.00033472,7]
[424722572,1781088674000,-150.0,0.00033589,7]
[424722599,1781088674000,-150.0,0.00033752,7]
[424722555,1781088674000,-241.6875,0.00033504,2]
[424722546,1781088674000,-662.46669759,0.00033472,7]
[424722547,1781088674000,-159.34890899,0.00033472,7]
[424722548,1781088674000,-150.0,0.00033474,7]
[424722549,1781088674000,-150.0,0.00033476,7]
[424722550,1781088674000,-1008.557428,0.00033477,120]
[424722554,1781088674000,-1236.1831621,0.000335,2]
[424722552,1781088674000,-564.95,0.00033492,7]
[424722551,1781088674000,-179.97120458,0.0003349,2]
[424722553,1781088674000,-400.2494037,0.00033496,2]
[424722556,1781088674000,-216.78508448,0.00033508,7]
[424722561,1781088674000,-216.78508448,0.00033544,7]
[424722573,1781088674000,-150.0,0.00033609,7]
[424722567,1781088674000,-150.0,0.00033562,7]
[424722558,1781088674000,-159.34890899,0.00033508,7]
[424722560,1781088674000,-150.0,0.00033514,7]
[424722559,1781088674000,-150.0,0.0003351,7]
[424722562,1781088674000,-662.46669759,0.00033544,7]
[424722563,1781088674000,-159.34890899,0.00033544,7]
[424722565,1781088674000,-150.0,0.00033546,7]
[424722566,1781088674000,-500.0,0.00033561,30]
[424722564,1781088674000,-748.0,0.00033545,9]
[424722569,1781088674000,-662.46669759,0.00033579,7]
[424722578,1781088674000,-150.0,0.00033624,30]
[424722568,1781088674000,-216.78508448,0.00033579,7]
[424722571,1781088674000,-150.0,0.00033582,7]
[424722570,1781088674000,-159.34890899,0.00033579,7]
[424722557,1781088674000,-662.46669759,0.00033508,7]
[424722600,1781088674000,-216.78508448,0.00033757,7]
[424722616,1781088674000,-150.0,0.00033815,2]
[424722605,1781088674000,-984.874227,0.00033777,120]
[424722637,1781088674000,-150.0,0.00033897,30]
[424722640,1781088674000,-159.34890899,0.00033899,7]
[424722635,1781088674000,-200.0,0.00033876,4]
[424722642,1781088674000,-1170.86291247,0.000339,120]
[424722647,1781088674000,-345.62483209,0.000339,120]
[424722650,1781088674000,-410.92595041,0.000339,120]
[424722651,1781088674000,-2327.82353513,0.000339,120]
[424722644,1781088674000,-1053.85299733,0.000339,120]
[424722643,1781088674000,-446.45724065,0.000339,120]
[424722645,1781088674000,-911.60756487,0.000339,120]
[424722653,1781088674000,-978.05956139,0.000339,120]
[424722646,1781088674000,-551.64915191,0.000339,120]
[424722648,1781088674000,-763.62785761,0.000339,120]
[424722649,1781088674000,-1097.83840734,0.000339,120]
[424722652,1781088674000,-317.25471197,0.000339,120]
[424722655,1781088674000,-1323.88286163,0.000339,120]
[424722656,1781088674000,-615.86881584,0.000339,120]
[424722665,1781088674000,-216.78508448,0.00033934,7]
[424722654,1781088674000,-539.16918205,0.000339,120]
[424722664,1781088674000,-150.0,0.0003393,7]
[424722657,1781088674000,-466.19776915,0.000339,120]
[424722659,1781088674000,-380.57006474,0.000339,120]
[424722662,1781088674000,-537.38185146,0.000339,120]
[424722663,1781088674000,-150.0,0.00033909,7]
[424722661,1781088674000,-1524.44686717,0.000339,120]
[424722606,1781088674000,-216.78508448,0.00033792,7]
[424722660,1781088674000,-1233.25712152,0.000339,120]
[424722636,1781088674000,-150.0,0.00033895,7]
[424722641,1781088674000,-749.7,0.000339,120]
[424722658,1781088674000,-1293.5078227,0.000339,120]
[424722634,1781088674000,-150.0,0.00033873,7]
[424722639,1781088674000,-662.46669759,0.00033899,7]
[424722608,1781088674000,-159.34890899,0.00033792,7]
[424722607,1781088674000,-662.46669759,0.00033792,7]
[424722614,1781088674000,-1018.0,0.000338,30]
[424722611,1781088674000,-7624.8,0.000338,2]
[424722612,1781088674000,-2541.6,0.000338,2]
[424722609,1781088674000,-150.0,0.00033799,7]
[424722613,1781088674000,-2541.59,0.000338,2]
[424722615,1781088674000,-500.0,0.00033801,30]
[424722618,1781088674000,-150.0,0.00033815,2]
[424722621,1781088674000,-150.0,0.00033816,7]
[424722628,1781088674000,-150.0,0.00033836,7]
[424722620,1781088674000,-150.0,0.00033815,2]
[424722610,1781088674000,-150.0,0.000338,7]
[424722619,1781088674000,-150.0,0.00033815,2]
[424722617,1781088674000,-150.0,0.00033815,2]
[424722632,1781088674000,-662.46669759,0.00033863,7]
[424722633,1781088674000,-159.34890899,0.00033863,7]
[424722638,1781088674000,-216.78508448,0.00033899,7]
[424722629,1781088674000,-179.97120458,0.00033838,2]
[424722631,1781088674000,-216.78508448,0.00033863,7]
[424722630,1781088674000,-150.0,0.00033847,7]
[424722625,1781088674000,-237.78371866,0.00033829,120]
[424722627,1781088674000,-272.2778396,0.00033829,120]
[424722622,1781088674000,-216.78508448,0.00033828,7]
[424722623,1781088674000,-662.46669759,0.00033828,7]
[424722624,1781088674000,-159.34890899,0.00033828,7]
[424722626,1781088674000,-154.55941713,0.00033829,120]
[424722708,1781088675000,-748.0,0.00034079,9]
[424722703,1781088675000,-160.0,0.00034065,11]
[424722704,1781088675000,-216.78508448,0.00034077,7]
[424722699,1781088675000,-159.34890899,0.00034041,7]
[424722696,1781088675000,-500.0,0.00034041,30]
[424722698,1781088675000,-662.46669759,0.00034041,7]
[424722694,1781088675000,-160.0,0.0003403,11]
[424722695,1781088675000,-150.0,0.00034037,7]
[424722707,1781088675000,-961.52226,0.00034078,120]
[424722697,1781088675000,-216.78508448,0.00034041,7]
[424722693,1781088675000,-500.0,0.00034026,30]
[424722713,1781088675000,-216.78508448,0.00034112,7]
[424722705,1781088675000,-662.46669759,0.00034077,7]
[424722706,1781088675000,-159.34890899,0.00034077,7]
[424722709,1781088675000,-300.0,0.00034081,30]
[424722712,1781088675000,-2500.0,0.00034099,2]
[424722711,1781088675000,-150.0,0.0003409,7]
[424722714,1781088675000,-662.46669759,0.00034112,7]
[424722724,1781088675000,-150.0,0.00034163,7]
[424722725,1781088675000,-150.0,0.00034173,7]
[424722716,1781088675000,-792.32,0.00034122,30]
[424722718,1781088675000,-150.0,0.00034126,7]
[424722722,1781088675000,-159.34890899,0.00034148,7]
[424722700,1781088675000,-150.0,0.00034043,7]
[424722710,1781088675000,-150.0,0.00034085,7]
[424722692,1781088675000,-150.0,0.00034018,7]
[424722689,1781088675000,-216.78508448,0.00034005,7]
[424722701,1781088675000,-2360.95,0.00034048,45]
[424722667,1781088675000,-159.34890899,0.00033934,7]
[424722677,1781088675000,-7624.8,0.00034,2]
[424722666,1781088675000,-662.46669759,0.00033934,7]
[424722669,1781088675000,-150.0,0.00033945,7]
[424722668,1781088675000,-150.0,0.00033942,7]
[424722671,1781088675000,-662.46669759,0.0003397,7]
[424722672,1781088675000,-159.34890899,0.0003397,7]
[424722670,1781088675000,-216.78508448,0.0003397,7]
[424722673,1781088675000,-1739.33,0.00033973,5]
[424722674,1781088675000,-150.0,0.00033973,60]
[424722675,1781088675000,-150.0,0.00033981,7]
[424722676,1781088675000,-150.0,0.0003399,7]
[424722679,1781088675000,-2541.59,0.00034,2]
[424722680,1781088675000,-2000.0,0.00034,34]
[424722678,1781088675000,-2541.6,0.00034,2]
[424722686,1781088675000,-750.0,0.00034,2]
[424722682,1781088675000,-390.5199142,0.00034,120]
[424722681,1781088675000,-10456.2798652,0.00034,120]
[424722687,1781088675000,-1130.0,0.00034,7]
[424722684,1781088675000,-160.0,0.00034,120]
[424722683,1781088675000,-2859.7826319,0.00034,2]
[424722688,1781088675000,-150.0,0.00034005,7]
[424722685,1781088675000,-40573.83047668,0.00034,4]
[424722691,1781088675000,-159.34890899,0.00034005,7]
[424722702,1781088675000,-150.0,0.00034054,7]
[424722690,1781088675000,-662.46669759,0.00034005,7]
[424722723,1781088675000,-150.0,0.00034157,7]
[424722715,1781088675000,-159.34890899,0.00034112,7]
[424722717,1781088675000,-150.0,0.00034123,7]
[424722758,1781088675000,-150.0,0.0003427,7]
[424722756,1781088675000,-662.46669759,0.00034254,7]
[424722755,1781088675000,-216.78508448,0.00034254,7]
[424722753,1781088675000,-150.0,0.00034235,7]
[424722761,1781088675000,-151.0,0.00034276,2]
[424722752,1781088675000,-150.0,0.00034227,7]
[424722760,1781088675000,-150.0,0.00034275,7]
[424722759,1781088675000,-150.0,0.00034271,7]
[424722762,1781088675000,-151.0,0.00034276,2]
[424722764,1781088675000,-256.00119808,0.00034281,36]
[424722763,1781088675000,-500.0,0.0003428,30]
[424722767,1781088675000,-532.16,0.0003429,120]
[424722765,1781088675000,-500.0,0.00034281,36]
[424722766,1781088675000,-151.0,0.00034286,2]
[424722768,1781088675000,-216.78508448,0.0003429,7]
[424722771,1781088675000,-200.0,0.000343,13]
[424722770,1781088675000,-159.34890899,0.0003429,7]
[424722772,1781088675000,-150.0,0.00034308,7]
[424722776,1781088675000,-527.85,0.00034325,7]
[424722774,1781088675000,-500.0,0.00034309,53]
[424722773,1781088675000,-256.001198,0.00034309,53]
[424722778,1781088675000,-662.46669759,0.00034325,7]
[424722777,1781088675000,-216.78508448,0.00034325,7]
[424722775,1781088675000,-150.0,0.00034322,7]
[424722720,1781088675000,-216.78508448,0.00034148,7]
[424722757,1781088675000,-159.34890899,0.00034254,7]
[424722754,1781088675000,-169.61312898,0.00034246,7]
[424722769,1781088675000,-662.46669759,0.0003429,7]
[424722744,1781088675000,-547.0,0.00034212,30]
[424722751,1781088675000,-1105.89,0.00034221,7]
[424722719,1781088675000,-150.0,0.00034132,7]
[424722721,1781088675000,-662.46669759,0.00034148,7]
[424722737,1781088675000,-551.0,0.00034212,30]
[424722727,1781088675000,-1286.1,0.00034182,7]
[424722732,1781088675000,-150.0,0.0003419,2]
[424722726,1781088675000,-150.0,0.0003418,7]
[424722736,1781088675000,-665.0,0.00034212,30]
[424722730,1781088675000,-159.34890899,0.00034183,7]
[424722728,1781088675000,-216.78508448,0.00034183,7]
[424722735,1781088675000,-620.0,0.00034212,30]
[424722731,1781088675000,-179.97120457,0.00034186,2]
[424722729,1781088675000,-662.46669759,0.00034183,7]
[424722733,1781088675000,-2324.0,0.0003419,11]
[424722745,1781088675000,-1829.0,0.00034212,30]
[424722741,1781088675000,-473.0,0.00034212,30]
[424722734,1781088675000,-150.0,0.00034199,7]
[424722747,1781088675000,-1235.0,0.00034212,30]
[424722743,1781088675000,-627.0,0.00034212,30]
[424722746,1781088675000,-646.0,0.00034212,30]
[424722740,1781088675000,-641.0,0.00034212,30]
[424722742,1781088675000,-1757.0,0.00034212,30]
[424722750,1781088675000,-159.34890899,0.00034219,7]
[424722749,1781088675000,-662.46669759,0.00034219,7]
[424722748,1781088675000,-216.78508448,0.00034219,7]
[424722738,1781088675000,-1839.0,0.00034212,30]
[424722739,1781088675000,-2029.0,0.00034212,30]
[424722814,1781088676000,-200.0,0.00034462,2]
[424722820,1781088676000,-150.0,0.00034465,7]
[424722818,1781088676000,-200.0,0.00034462,2]
[424722830,1781088676000,-200.0,0.00034491,2]
[424722807,1781088676000,-150.0,0.00034453,2]
[424722816,1781088676000,-200.0,0.00034462,2]
[424722810,1781088676000,-500.0,0.00034453,2]
[424722809,1781088676000,-500.0,0.00034453,2]
[424722808,1781088676000,-500.0,0.00034453,2]
[424722817,1781088676000,-200.0,0.00034462,2]
[424722821,1781088676000,-216.78508448,0.00034467,7]
[424722813,1781088676000,-150.0,0.00034453,2]
[424722825,1781088676000,-3743.28429577,0.00034475,15]
[424722842,1781088676000,-216.78508448,0.00034538,7]
[424722824,1781088676000,-150.0,0.00034475,7]
[424722819,1781088676000,-200.0,0.00034465,2]
[424722829,1781088676000,-200.0,0.0003449,2]
[424722822,1781088676000,-662.46669759,0.00034467,7]
[424722823,1781088676000,-159.34890899,0.00034467,7]
[424722827,1781088676000,-200.0,0.0003449,2]
[424722828,1781088676000,-200.0,0.0003449,2]
[424722832,1781088676000,-487.45764926,0.000345,30]
[424722833,1781088676000,-184019.0,0.000345,120]
[424722843,1781088676000,-662.46669759,0.00034538,7]
[424722834,1781088676000,-2000.0,0.000345,2]
[424722831,1781088676000,-150.0,0.00034497,7]
[424722806,1781088676000,-150.0,0.00034453,2]
[424722826,1781088676000,-150.0,0.00034489,7]
[424722811,1781088676000,-150.0,0.00034453,2]
[424722781,1781088676000,-160.0,0.00034342,11]
[424722815,1781088676000,-200.0,0.00034462,2]
[424722779,1781088676000,-159.34890899,0.00034325,7]
[424722836,1781088676000,-662.46669759,0.00034503,7]
[424722791,1781088676000,-216.78508448,0.00034396,7]
[424722782,1781088676000,-150.0,0.00034344,7]
[424722780,1781088676000,-2324.0,0.00034342,11]
[424722787,1781088676000,-150.0,0.0003437,7]
[424722783,1781088676000,-500.0,0.00034351,30]
[424722784,1781088676000,-216.78508448,0.00034361,7]
[424722786,1781088676000,-159.34890899,0.00034361,7]
[424722785,1781088676000,-662.46669759,0.00034361,7]
[424722789,1781088676000,-150.0,0.0003438,7]
[424722788,1781088676000,-938.501527,0.00034378,120]
[424722790,1781088676000,-150.0,0.00034384,7]
[424722792,1781088676000,-662.46669759,0.00034396,7]
[424722793,1781088676000,-159.34890899,0.00034396,7]
[424722803,1781088676000,-500.0,0.00034438,2]
[424722794,1781088676000,-350.0,0.00034399,36]
[424722795,1781088676000,-2021.14755106,0.000344,10]
[424722797,1781088676000,-5508.0,0.000344,5]
[424722798,1781088676000,-150.0,0.00034416,7]
[424722796,1781088676000,-1100.44569539,0.000344,10]
[424722801,1781088676000,-662.46669759,0.00034432,7]
[424722799,1781088676000,-150.0,0.00034417,7]
[424722800,1781088676000,-216.78508448,0.00034432,7]
[424722802,1781088676000,-159.34890899,0.00034432,7]
[424722804,1781088676000,-150.0,0.00034453,7]
[424722805,1781088676000,-150.0,0.00034453,2]
[424722812,1781088676000,-150.0,0.00034453,2]
[424722840,1781088676000,-219.07,0.00034521,120]
[424722835,1781088676000,-216.78508448,0.00034503,7]
[424722900,1781088676000,-300.0,0.00034592,2]
[424722870,1781088676000,-1098.49167663,0.00034592,2]
[424722871,1781088676000,-659.0423452,0.00034592,2]
[424722873,1781088676000,-808.85021255,0.00034592,2]
[424722876,1781088676000,-300.46809915,0.00034592,2]
[424722875,1781088676000,-728.44818321,0.00034592,2]
[424722874,1781088676000,-714.31970852,0.00034592,2]
[424722879,1781088676000,-1803.11781889,0.00034592,2]
[424722880,1781088676000,-414.15537756,0.00034592,2]
[424722881,1781088676000,-595.91857499,0.00034592,2]
[424722882,1781088676000,-512.77667485,0.00034592,2]
[424722883,1781088676000,-445.05174145,0.00034592,2]
[424722889,1781088676000,-971.57029025,0.00034592,2]
[424722884,1781088676000,-300.0,0.00034592,2]
[424722890,1781088676000,-400.74463678,0.00034592,2]
[424722887,1781088676000,-300.0,0.00034592,2]
[424722888,1781088676000,-300.0,0.00034592,2]
[424722886,1781088676000,-1098.49167663,0.00034592,2]
[424722891,1781088676000,-402.06225775,0.00034592,2]
[424722897,1781088676000,-683.92022631,0.00034592,2]
[424722894,1781088676000,-317.77416869,0.00034592,2]
[424722892,1781088676000,-344.95896725,0.00034592,2]
[424722893,1781088676000,-528.43362309,0.00034592,2]
[424722896,1781088676000,-794.81142076,0.00034592,2]
[424722898,1781088676000,-453.23188383,0.00034592,2]
[424722895,1781088676000,-1803.11781889,0.00034592,2]
[424722841,1781088676000,-150.0,0.00034525,7]
[424722899,1781088676000,-593.57159293,0.00034592,2]
[424722869,1781088676000,-300.0,0.00034592,2]
[424722872,1781088676000,-300.0,0.00034592,2]
[424722885,1781088676000,-330.78056011,0.00034592,2]
[424722866,1781088676000,-512.77667485,0.00034592,2]
[424722838,1781088676000,-150.0,0.00034513,7]
[424722868,1781088676000,-300.0,0.00034592,2]
[424722839,1781088676000,-500.0,0.0003452,30]
[424722845,1781088676000,-1733.91,0.00034546,2]
[424722844,1781088676000,-159.34890899,0.00034538,7]
[424722846,1781088676000,-150.0,0.0003455,2]
[424722848,1781088676000,-150.74840494,0.0003455,2]
[424722847,1781088676000,-150.0,0.0003455,2]
[424722855,1781088676000,-159.34890899,0.00034574,7]
[424722849,1781088676000,-150.0,0.0003455,2]
[424722853,1781088676000,-216.78508448,0.00034574,7]
[424722852,1781088676000,-150.0,0.00034562,7]
[424722850,1781088676000,-250.0,0.00034559,7]
[424722851,1781088676000,-150.0,0.0003456,7]
[424722837,1781088676000,-159.34890899,0.00034503,7]
[424722857,1781088676000,-310.51494857,0.00034592,2]
[424722854,1781088676000,-662.46669759,0.00034574,7]
[424722878,1781088676000,-952.10062125,0.00034592,2]
[424722867,1781088676000,-445.05174145,0.00034592,2]
[424722865,1781088676000,-595.91857499,0.00034592,2]
[424722864,1781088676000,-310.51494857,0.00034592,2]
[424722859,1781088676000,-494.13170308,0.00034592,2]
[424722877,1781088676000,-301.45515016,0.00034592,2]
[424722861,1781088676000,-606.43789656,0.00034592,2]
[424722863,1781088676000,-952.10062125,0.00034592,2]
[424722858,1781088676000,-300.0,0.00034592,2]
[424722856,1781088676000,-165.69,0.0003459,30]
[424722860,1781088676000,-300.0,0.00034592,2]
[424722862,1781088676000,-535.56793977,0.00034592,2]
[424722948,1781088677000,-150.0,0.00034598,7]
[424722943,1781088677000,-500.0,0.00034595,60]
[424722933,1781088677000,-208.5823902,0.00034595,60]
[424722939,1781088677000,-500.0,0.00034595,60]
[424722937,1781088677000,-500.0,0.00034595,60]
[424722934,1781088677000,-400.9458163,0.00034595,60]
[424722932,1781088677000,-681.1843395,0.00034595,60]
[424722936,1781088677000,-500.0,0.00034595,60]
[424722938,1781088677000,-500.0,0.00034595,60]
[424722935,1781088677000,-523.5656946,0.00034595,60]
[424722944,1781088677000,-822.9741783,0.00034595,60]
[424722940,1781088677000,-583.3172585,0.00034595,60]
[424722942,1781088677000,-500.0,0.00034595,60]
[424722952,1781088677000,-662.46669759,0.0003461,7]
[424722947,1781088677000,-150.966,0.00034596,2]
[424722945,1781088677000,-150.0,0.00034596,2]
[424722946,1781088677000,-150.0,0.00034596,2]
[424722950,1781088677000,-150.0,0.00034608,7]
[424722949,1781088677000,-238656.37791988,0.000346,5]
[424722955,1781088677000,-748.0,0.00034613,10]
[424722953,1781088677000,-159.34890899,0.0003461,7]
[424722964,1781088677000,-256.001198,0.00034659,57]
[424722954,1781088677000,-150.0,0.00034611,7]
[424722956,1781088677000,-269.78740808,0.0003462,30]
[424722959,1781088677000,-216.78508448,0.00034645,7]
[424722930,1781088677000,-987.4437352,0.00034595,60]
[424722951,1781088677000,-216.78508448,0.0003461,7]
[424722941,1781088677000,-763.6008281,0.00034595,60]
[424722958,1781088677000,-150.0,0.00034634,7]
[424722923,1781088677000,-533.8377132,0.00034595,60]
[424722902,1781088677000,-300.0,0.00034592,2]
[424722901,1781088677000,-366.64641781,0.00034592,2]
[424722904,1781088677000,-704.79615891,0.00034592,2]
[424722903,1781088677000,-460.09816425,0.00034592,2]
[424722915,1781088677000,-300.0,0.00034592,2]
[424722905,1781088677000,-867.20265832,0.00034592,2]
[424722907,1781088677000,-453.23188383,0.00034592,2]
[424722913,1781088677000,-300.0,0.00034592,2]
[424722911,1781088677000,-604.48677059,0.00034592,2]
[424722912,1781088677000,-300.0,0.00034592,2]
[424722910,1781088677000,-1156.62460017,0.00034592,2]
[424722909,1781088677000,-300.0,0.00034592,2]
[424722908,1781088677000,-300.7587018,0.00034592,2]
[424722906,1781088677000,-601.83131417,0.00034592,2]
[424722917,1781088677000,-300.0,0.00034592,2]
[424722916,1781088677000,-302.68037416,0.00034592,2]
[424722918,1781088677000,-300.0,0.00034592,2]
[424722927,1781088677000,-500.0,0.00034595,60]
[424722928,1781088677000,-622.1124615,0.00034595,60]
[424722926,1781088677000,-500.0,0.00034595,60]
[424722929,1781088677000,-828.3835707,0.00034595,60]
[424722920,1781088677000,-206.3267069,0.00034595,60]
[424722919,1781088677000,-403.69869952,0.00034592,2]
[424722925,1781088677000,-500.0,0.00034595,60]
[424722922,1781088677000,-500.0,0.00034595,60]
[424722921,1781088677000,-311.9698821,0.00034595,60]
[424722924,1781088677000,-500.0,0.00034595,60]
[424722931,1781088677000,-630.658302,0.00034595,60]
[424722957,1781088677000,-6179.46839387,0.00034623,7]
[424722914,1781088677000,-300.0,0.00034592,2]
[424722962,1781088677000,-159.78933284,0.0003465,2]
[424722994,1781088677000,-150.0,0.00034743,7]
[424722993,1781088677000,-150.0,0.00034724,7]
[424722992,1781088677000,-159.34890899,0.00034716,7]
[424722997,1781088677000,-216.78508448,0.00034752,7]
[424722998,1781088677000,-662.46669759,0.00034752,7]
[424722996,1781088677000,-150.0,0.0003475,7]
[424723011,1781088677000,-1000.0,0.00034787,2]
[424723001,1781088677000,-271514.26393212,0.00034765,120]
[424723000,1781088677000,-500.0,0.0003476,30]
[424723005,1781088677000,-269.59464086,0.00034783,2]
[424723003,1781088677000,-150.0,0.00034779,7]
[424723002,1781088677000,-16068.51162079,0.00034765,10]
[424723004,1781088677000,-5800.0,0.00034783,2]
[424723006,1781088677000,-5800.0,0.00034783,2]
[424723007,1781088677000,-256.001198,0.00034785,58]
[424723008,1781088677000,-500.0,0.00034785,58]
[424723010,1781088677000,-1000.0,0.00034787,2]
[424723012,1781088677000,-1114.97,0.00034787,2]
[424723013,1781088677000,-1000.0,0.00034787,2]
[424723014,1781088677000,-1304.39,0.00034787,2]
[424723016,1781088677000,-662.46669759,0.00034787,7]
[424723015,1781088677000,-216.78508448,0.00034787,7]
[424723020,1781088677000,-238.0,0.00034799,3]
[424723017,1781088677000,-159.34890899,0.00034787,7]
[424723018,1781088677000,-1500.0,0.00034795,2]
[424723019,1781088677000,-150.0,0.00034798,7]
[424722961,1781088677000,-159.34890899,0.00034645,7]
[424722988,1781088677000,-256.001198,0.0003471,30]
[424722991,1781088677000,-662.46669759,0.00034716,7]
[424723009,1781088677000,-1000.0,0.00034787,2]
[424722995,1781088677000,-4935.81941018,0.00034748,5]
[424722990,1781088677000,-216.78508448,0.00034716,7]
[424722963,1781088677000,-150.0,0.00034655,7]
[424722965,1781088677000,-500.0,0.00034659,57]
[424722960,1781088677000,-662.46669759,0.00034645,7]
[424722966,1781088677000,-150.0,0.0003467,7]
[424722970,1781088677000,-256.001198,0.00034679,30]
[424722972,1781088677000,-216.78508448,0.00034681,7]
[424722973,1781088677000,-662.46669759,0.00034681,7]
[424722968,1781088677000,-150.0,0.00034676,7]
[424722967,1781088677000,-500.0,0.00034675,30]
[424722976,1781088677000,-500.0,0.00034681,2]
[424722974,1781088677000,-159.34890899,0.00034681,7]
[424722975,1781088677000,-500.0,0.00034681,2]
[424722971,1781088677000,-500.0,0.00034679,30]
[424722977,1781088677000,-470.0,0.00034681,2]
[424722999,1781088677000,-159.34890899,0.00034752,7]
[424722969,1781088677000,-808.505026,0.00034678,120]
[424722989,1781088677000,-500.0,0.0003471,30]
[424722982,1781088677000,-1840.4830196,0.000347,2]
[424722987,1781088677000,-500.0,0.0003471,37]
[424722979,1781088677000,-532.16,0.00034692,120]
[424722985,1781088677000,-150.0,0.00034707,7]
[424722981,1781088677000,-500.0,0.00034699,31]
[424722986,1781088677000,-256.001198,0.0003471,37]
[424722984,1781088677000,-150.0,0.00034703,7]
[424722980,1781088677000,-256.001198,0.00034699,31]
[424722978,1781088677000,-256.7,0.00034692,120]
[424722983,1781088677000,-230.10122146,0.00034701,60]
[424723044,1781088678000,-2771.81491141,0.00034845,2]
[424723045,1781088678000,-3200.61562903,0.00034845,2]
[424723039,1781088678000,-3124.16044687,0.00034845,2]
[424723043,1781088678000,-1296.72893525,0.00034845,2]
[424723046,1781088678000,-1903.90697544,0.00034845,2]
[424723048,1781088678000,-1434.13758969,0.00034845,2]
[424723047,1781088678000,-3621.19007014,0.00034845,2]
[424723051,1781088678000,-1383.32510113,0.00034845,2]
[424723055,1781088678000,-25000.0,0.00034845,10]
[424723050,1781088678000,-1231.74665093,0.00034845,2]
[424723052,1781088678000,-1508.90620828,0.00034845,2]
[424723054,1781088678000,-25000.0,0.00034845,10]
[424723053,1781088678000,-150.0,0.00034845,7]